[Event "Arona Festival 2024"]
[Site "Arona Tenerife"]
[Date "2024.06.24"]
[Round "4.1"]
[White "Ritviz, Parab"]
[Black "Sosa, Tomas"]
[Result "1/2-1/2"]
[ECO "C16"]
[WhiteElo "2334"]
[BlackElo "2535"]
[Annotator "TA"]
[PlyCount "109"]
[EventDate "2024.06.20"]
[EventType "swiss"]
[EventCountry "ESP"]
[SourceTitle "playchess.com"]
[Source "ChessBase"]
[SourceQuality "1"]
[TimeControl "5400+30"]

{[%evp 11,109,3,6,0,0,0,14,-3,6,-34,13,8,19,8,0,0,101,54,78,72,77,82,69,71,95,47,34,0,72,58,56,56,69,77,64,60,74,74,90,69,73,36,127,56,163,157,159,18,47,0,0,0,0,0,0,0,0,0,-8,-50,0,0,0,-8,10,0,9,6,11,6,7,0,0,0,0,0,0,0,0,0,0,-44,0,0,0,0,0,0,0,0,0,0,8,8,8,8,8,8,8,8]} 1. e4 {[%emt 0:05:22]} e6 {[%emt 0:00:25]} 2. d4 {[%emt 0:00:12]} d5 {[%emt 0:00:10]} 3. Nc3 {[%emt 0:00:22]} Bb4 {[%emt 0:00:11]} 4. e5 {[%emt 0:00:30]} Qd7 {[%emt 0:00:08]} 5. Nf3 {[%emt 0:06:54]} b6 {[%emt 0:01:10]} 6. Bd2 {[%emt 0:19:42]} Ne7 {[%emt 0:03:50]} 7. Nb5 {[%emt 0:10:20]} Bxd2+ 8. Qxd2 {[%emt 0:00:03]} a6 {[%emt 0:11:16]} 9. Nc3 {[%emt 0:10:33]} c5 {[%emt 0:01:08]} 10. Qg5 {[%emt 0:06:45]} cxd4 {[%emt 0:11:02]} (10... O-O $15 {was preferrable.}) 11. Nxd4 {[%emt 0:02:18]} (11. Qxg7 $2 Rg8 12. Qxh7 dxc3 13. bxc3 Qc7 $19) 11... O-O {[%emt 0:00:16]} 12. O-O-O {[%emt 0:01:46]} (12. Bd3 {seems wilder.} Nbc6 13. Nxc6 Nxc6 14. f4) 12... h6 {[%emt 0:11:54]} 13. Qh5 {[%emt 0:08:21]} f6 {[%emt 0:15:50]} (13... Nbc6 $11 {remains equal.}) 14. exf6 $1 $16 {[%emt 0:16:56] White is much more active. The black rooks are passive.} Rxf6 {[%emt 0:01:18][%cal Ob8c6]} 15. g4 {[%emt 0:06:00] Threatens to win with Bd3.} Qc7 {[%emt 0:04:13][%cal Oc8d7]} 16. Rg1 {[%emt 0:00:41] And now g5 would win.} Qf4+ {[%emt 0:12:19]} 17. Kb1 {[%emt 0:00:11]} Qg5 {[%emt 0:00:38]} 18. Qxg5 (18. Qe8+ $1 $16 Rf8 19. f4 Rxe8 20. fxg5) 18... hxg5 $14 {[%emt 0:00:01]} 19. Bg2 {[%emt 0:02:30]} Rxf2 {[%emt 0:10:08]} (19... Nbc6 $11) 20. Nf3 {[%emt 0:00:32][%cal Od1e1]} Nbc6 {[%emt 0:08:30]} 21. Rde1 $1 {[%emt 0:00:20][%cal Oc3d1]} Bd7 {[%emt 0:01:47]} 22. Nd1 $1 {[%emt 0:00:10]} Rxf3 23. Bxf3 {[%emt 0:00:03]} Ng6 {[%emt 0:00:35]} 24. Rgf1 {[%emt 0:01:13][%cal Oc2c4]} Nf4 {[%emt 0:02:06]} 25. Bh1 {[%emt 0:00:31][%cal Oh2h4]} Rf8 {[%emt 0:01:32]} 26. Ne3 {[%emt 0:00:30]} Ne7 {[%emt 0:01:29] [#]} (26... Rf6 $14) 27. Rf2 {[%emt 0:00:30]} (27. c4 $1 $16) 27... e5 {[%emt 0:00:55]} (27... b5 $14) 28. Rd2 $18 {[%emt 0:00:44]} Be6 {[%emt 0:00:41] [#]} 29. Ng2 {[%emt 0:00:30]} ({Better is} 29. c4 $1 $16 {[%cal Rc4d5]} d4 30. Nd5 Nfxd5 31. cxd5 Bxd5 32. Bxd5+ (32. Rxe5 Rf1+ 33. Kc2 Rxh1 $16) 32... Nxd5 33. Rxe5 Rf1+ 34. Kc2 Ne3+ 35. Kd3) 29... Nfg6 {[%emt 0:00:15][%cal Ob6b5]} 30. h3 {[%emt 0:00:20]} (30. b3 $14) 30... b5 $1 $11 {[%emt 0:00:18]} 31. c3 {[%emt 0:00:13]} e4 {[%emt 0:00:47]} 32. Ne3 {[%emt 0:00:41]} Nf4 {[%emt 0:00:06]} 33. Bg2 {[%emt 0:00:31]} Neg6 {[%emt 0:00:12]} 34. Bf1 {[%emt 0:00:32]} Ne5 {[%emt 0:00:13]} 35. Red1 {[%emt 0:00:35]} Nfd3 {[%emt 0:01:28] Excellent horsemanship.} ({Black should play} 35... Nxh3 $15 36. Bxh3 Rf3 37. Rxd5 (37. Nxd5 Rxh3 38. Kc2 Bxg4 $19) 37... Bxd5 38. Rxd5 Nd3) 36. Be2 {[%emt 0:00:36]} Rf6 {[%emt 0:00:46]} 37. b3 {[%emt 0:00:26]} a5 {[%emt 0:00:36]} 38. Kc2 {[%emt 0:00:30]} b4 {[%emt 0:00:29]} 39. Bxd3 {[%emt 0:00:29]} (39. a3 {looks sharper.} Rh6 40. Bf1 Kf7 41. axb4 axb4 42. Bxd3 exd3+ 43. Rxd3 Nxd3 44. Rxd3 d4 45. Rxd4 Rxh3 46. Re4) 39... exd3+ {[%emt 0:00:15]} 40. Rxd3 {[%emt 0:00:35]} (40. Kb2 {with more complications.} Rf3 41. Re1 Rxh3 42. Nxd5 Nf3 43. Rxe6 Nxd2 44. cxb4 axb4 45. Re3) 40... Nxd3 41. Rxd3 {[%emt 0:00:25][%mdl 4096] Endgame. KRB-KRN} Rf2+ {[%emt 0:00:56]} 42. Rd2 {[%emt 0:00:17]} Rf3 {[%emt 0:00:03][%csl LRe3,LRh3]} 43. Nxd5 {[%emt 0:00:12]} Rxh3 {[%emt 0:01:04]} 44. cxb4 {[%emt 0:00:22]} axb4 {[%emt 0:00:01]} 45. Nxb4 {[%emt 0:00:54]} Bxg4 {[%emt 0:00:02]} 46. a4 {[%emt 0:00:51]} Be6 {[%emt 0:00:19]} 47. Nd5 {[%emt 0:00:29] The position is equal.} g4 {[%emt 0:00:45]} 48. a5 {[%emt 0:00:11]} g3 {[%emt 0:01:20] ...Bf5+ is the strong threat.} 49. Nf4 {[%emt 0:00:39]} Rh2 {[%emt 0:00:35][%cal Oe6b3]} 50. a6 {[%emt 0:00:34][%cal Oa6a7] a7! would now be deadly.} (50. Nxe6 $2 {perishes.} Rxd2+ 51. Kxd2 g2 $19) 50... Bxb3+ {[%emt 0:00:32]} 51. Kc3 {[%emt 0:00:08] White wants to mate with a7.} Rxd2 {[%emt 0:00:41]} 52. Kxd2 {[%emt 0:00:08] Threatening mate with a7.} Ba4 {[%emt 0:00:09]} 53. Ke3 {[%emt 0:00:56]} Bc6 {[%emt 0:00:15]} 54. Ne2 {[%emt 0:00:19]} g2 {[%emt 0:00:05]} 55. Kf2 {[%emt 0:00:07] Weighted Error Value: White=0.15 (very precise) /Black=0.16 (very precise) .  Mistake:       	White=4     	Black=6      Inaccurate:     	White=5     	Black=2      OK:         	White=13    	Black=23     Best:        	---       	Black=3      Strong:       	White=3     	Black=1} 1/2-1/2

[Event "Arona Festival 2024"]
[Site "Arona Tenerife"]
[Date "2024.06.24"]
[Round "4.2"]
[White "Pichot, Alan"]
[Black "Bilguun, Sumiya"]
[Result "1-0"]
[ECO "B41"]
[WhiteElo "2640"]
[BlackElo "2466"]
[Annotator "RC"]
[PlyCount "73"]
[EventDate "2024.06.20"]
[EventType "swiss"]
[EventCountry "ESP"]
[SourceTitle "playchess.com"]
[Source "ChessBase"]
[SourceQuality "1"]
[TimeControl "5400+30"]

1. e4 {[%emt 0:03:47]} c5 {[%emt 0:00:16]} 2. Nf3 {[%emt 0:00:06]} a6 {[%emt 0:00:11]} 3. c4 {[%emt 0:00:50]} e6 {[%emt 0:00:18]} 4. Nc3 {[%emt 0:00:34]} Qc7 {[%emt 0:01:27]} 5. d4 {[%emt 0:01:24]} cxd4 {[%emt 0:00:16]} 6. Nxd4 {[%emt 0:00:06]} Nf6 {[%emt 0:00:15]} 7. Bd3 {[%emt 0:00:30]} Nc6 {[%emt 0:16:30]} 8. Nf3 {[%emt 0:00:44]} Bc5 {[%emt 0:12:57]} 9. h3 {[%emt 0:00:09]} h6 {[%emt 0:04:31]} 10. a3 {[%emt 0:05:12]} d6 {[%emt 0:09:51]} 11. b4 {[%emt 0:06:04]} Ba7 {[%emt 0:00:58]} 12. Bb2 {[%emt 0:18:03]} Ne7 {[%emt 0:07:44]} 13. Rc1 {[%emt 0:07:04]} Ng6 {[%emt 0:01:26]} 14. O-O {[%emt 0:01:48]} O-O {[%emt 0:07:51]} 15. Qd2 {[%emt 0:03:58]} Qe7 {[%emt 0:05:13]} 16. Rfd1 {[%emt 0:02:49]} e5 {[%emt 0:03:07]} 17. Bb1 {[%emt 0:12:34]} Bxh3 {[%emt 0:10:26]} 18. Qxd6 {[%emt 0:05:28]} Qe8 {[%emt 0:03:05]} 19. c5 {[%emt 0:10:04]} Bxg2 20. Kxg2 {[%emt 0:01:29]} Qc8 {[%emt 0:04:32]} 21. Nh2 {[%emt 0:07:12]} Nh4+ {[%emt 0:06:21]} 22. Kh1 {[%emt 0:00:05]} Ng4 {[%emt 0:02:46]} 23. Qd7 {[%emt 0:02:00]} Nxf2+ {[%emt 0:00:19]} 24. Kg1 {[%emt 0:00:05]} Nxd1 {[%emt 0:00:35]} 25. Qxc8 Raxc8 {[%emt 0:00:02]} 26. Rxd1 {[%emt 0:00:45]} Rcd8 {[%emt 0:00:42]} 27. Nd5 {[%emt 0:00:38]} Bb8 {[%emt 0:00:10]} 28. Kf2 {[%emt 0:01:53]} f5 {[%emt 0:01:03]} 29. Ke2 {[%emt 0:00:12]} Rde8 {[%emt 0:00:44]} 30. Nf3 {[%emt 0:00:43]} Nxf3 31. Kxf3 {[%emt 0:00:06]} fxe4+ {[%emt 0:00:52]} 32. Ke2 {[%emt 0:00:50]} Rf4 {[%emt 0:01:21]} 33. Nxf4 {[%emt 0:03:03]} exf4 {[%emt 0:00:01]} 34. Rd7 {[%emt 0:00:11]} f3+ {[%emt 0:00:23]} 35. Ke3 {[%emt 0:00:27]} Bf4+ {[%emt 0:00:08]} 36. Kxf4 {[%emt 0:00:13]} f2 {[%emt 0:00:13]} 37. Ba2+ {[%emt 0:00:12]} 1-0

[Event "Arona Festival 2024"]
[Site "Arona Tenerife"]
[Date "2024.06.24"]
[Round "4.3"]
[White "Samant Aditya S"]
[Black "Kazakouski, Valery"]
[Result "1/2-1/2"]
[ECO "C64"]
[WhiteElo "2469"]
[BlackElo "2603"]
[Annotator "TA"]
[PlyCount "61"]
[EventDate "2024.06.20"]
[EventType "swiss"]
[EventCountry "ESP"]
[SourceTitle "playchess.com"]
[Source "ChessBase"]
[SourceQuality "1"]
[TimeControl "5400+30"]

{[%evp 9,61,21,20,20,36,17,30,9,21,14,20,23,35,38,52,47,45,46,48,37,45,39,55,47,32,46,44,50,50,27,37,34,43,28,60,12,55,60,56,51,53,0,13,0,0,0,0,0,15,0,0,0,0,0]} 1. e4 {[%emt 0:00:03]} e5 {[%emt 0:00:07]} 2. Nf3 {[%emt 0:00:04]} Nc6 {[%emt 0:00:06]} 3. Bb5 {[%emt 0:00:05]} Bc5 {[%emt 0:00:21]} 4. c3 {[%emt 0:01:38]} Nf6 {[%emt 0:00:07][%cal Bg8f6,Bf6d5,Bd5c3][%mdl 32]} 5. d4 {[%emt 0:00:06]} exd4 {[%emt 0:00:06]} 6. e5 {[%emt 0:03:09]} Nd5 {[%emt 0:00:11]} 7. cxd4 {[%emt 0:00:11]} (7. Nxd4 Nde7 $11 (7... Nxe5 8. O-O $15)) 7... Bb4+ {[%emt 0:00:50]} 8. Bd2 {[%emt 0:00:11] White has an edge.} Bxd2+ {[%emt 0:00:21]} 9. Qxd2 {[%emt 0:00:19]} d6 {[%emt 0:01:02]} 10. Nc3 {[%emt 0:00:58]} Nxc3 {[%emt 0:06:13]} 11. Bxc6+ {[%emt 0:01:54]} bxc6 {[%emt 0:00:09]} 12. Qxc3 {[%emt 0:00:05]} (12. bxc3 Ba6 $11) 12... Bd7 {[%emt 0:03:25] Black is weak on the dark squares} 13. O-O {[%emt 0:01:19][%cal Od4d5] Black must now prevent d5!} O-O {[%emt 0:00:16]} 14. Rfe1 {[%emt 0:01:19]} a5 {[%emt 0:02:04]} 15. Nd2 {[%emt 0:14:30]} Be6 {[%emt 0:05:20]} 16. Nc4 {[%emt 0:06:10]} ({Reject} 16. Qxc6 dxe5 17. Nf3 Bd5 $17 (17... exd4 18. Qc5 $15)) 16... Bxc4 {[%emt 0:07:14]} 17. Qxc4 {[%emt 0:00:07]} Rb8 {[%emt 0:00:30][%cal Ba8b8,Bb8b4,Bb4d4][%mdl 32]} 18. b3 {[%emt 0:00:37]} Rb4 {[%emt 0:03:09]} 19. Qxc6 {[%emt 0:07:41]} Rxd4 {[%emt 0:00:32]} 20. exd6 Rxd6 {[%emt 0:01:42]} 21. Qc3 {[%emt 0:01:40]} c6 {[%emt 0:10:46]} 22. Re5 {[%emt 0:03:37]} (22. h3 $14 {feels stronger.}) 22... f6 {[%emt 0:04:02]} 23. Re2 {[%emt 0:01:34]} (23. Rxa5 $2 {perishes.} Rd1+ $19) 23... Rd1+ {[%emt 0:01:24]} 24. Rxd1 {[%emt 0:01:24]} Qxd1+ {[%emt 0:00:10]} 25. Qe1 {[%emt 0:00:45]} ({White should try} 25. Re1 $14 Qd5 26. g3) 25... Qxe1+ $11 {The position is equal.} 26. Rxe1 {[%emt 0:00:05] KR-KR} Rd8 {[%emt 0:00:14]} 27. Kf1 {[%emt 0:00:21]} Rd2 {[%emt 0:00:18]} 28. Re2 {[%emt 0:00:34]} Rd1+ {[%emt 0:00:05]} 29. Re1 {[%emt 0:00:03]} Rd2 {[%emt 0:00:06]} 30. Re2 {[%emt 0:00:02]} Rd1+ {[%emt 0:00:07]} 31. Re1 {[%emt 0:00:07] Weighted Error Value: White=0.10 (very precise) /Black=0.05 (flawless) .  Mistake:       	White=2     	---        Inaccurate:     	---       	Black=2      OK:         	White=9     	Black=17} 1/2-1/2

[Event "Arona Festival 2024"]
[Site "Arona Tenerife"]
[Date "2024.06.24"]
[Round "4.4"]
[White "Xue, Haowen"]
[Black "Gorshtein, Ido"]
[Result "1/2-1/2"]
[ECO "A37"]
[WhiteElo "2452"]
[BlackElo "2563"]
[Annotator "TA"]
[PlyCount "56"]
[EventDate "2024.06.20"]
[EventType "swiss"]
[EventCountry "ESP"]
[SourceTitle "playchess.com"]
[Source "ChessBase"]
[SourceQuality "1"]
[TimeControl "5400+30"]

{[%evp 15,56,0,14,18,38,4,9,27,10,27,56,56,65,54,58,54,64,45,70,50,55,69,64,39,73,47,35,27,45,27,28,0,6,0,0,-16,-10,-24,0,0,0,0,0]} 1. c4 {[%emt 0:00:03]} c5 {[%emt 0:01:10]} 2. Nf3 {[%emt 0:00:09]} Nc6 {[%emt 0:00:09]} 3. g3 {[%emt 0:00:07]} g6 {[%emt 0:00:30]} 4. Bg2 {[%emt 0:00:07]} Bg7 {[%emt 0:00:02]} 5. Nc3 {[%emt 0:00:18]} d6 {[%emt 0:00:59]} 6. O-O {[%emt 0:01:09]} e6 {[%emt 0:01:10]} 7. e3 {[%emt 0:02:03]} Nge7 {[%emt 0:00:04]} 8. d4 {[%emt 0:00:40]} O-O {[%emt 0:00:47]} 9. Re1 {[%emt 0:04:52]} h6 {[%emt 0:06:23]} 10. Bd2 {[%emt 0:20:15]} cxd4 {[%emt 0:11:50]} 11. Nxd4 {[%emt 0:06:19]} Nxd4 {[%emt 0:03:04]} 12. exd4 {[%emt 0:00:02]} Kh7 {[%emt 0:01:54]} 13. d5 {[%emt 0:10:50]} exd5 {[%emt 0:13:34]} 14. cxd5 {[%emt 0:02:53]} ({Reject} 14. Bxd5 Nxd5 15. Nxd5 Be6 $11) 14... Bf5 {[%emt 0:16:06]} 15. Qb3 {[%emt 0:03:19]} Ng8 {[%emt 0:02:56]} 16. Rac1 {[%emt 0:09:09]} (16. Qxb7 Rb8 17. Qxa7 Rxb2 $15) 16... Nf6 {[%emt 0:02:08]} 17. Nb5 {[%emt 0:05:08]} ({Much weaker is} 17. Qxb7 Nd7) 17... a6 {[%emt 0:06:14]} 18. Nd4 {[%emt 0:00:22][%cal Od4f5,Bb5d4,Bd4f3,Bf3d2,Bd2c4][%mdl 32]} Bc8 {[%emt 0:01:50]} 19. Nf3 {[%emt 0:04:56] White is much more active.} Re8 {[%emt 0:04:49]} 20. Bc3 {[%emt 0:02:00]} Rxe1+ {[%emt 0:02:07]} 21. Rxe1 {[%emt 0:00:45]} Nd7 {[%emt 0:00:36]} 22. Bxg7 {[%emt 0:00:25]} Kxg7 {[%emt 0:00:03]} 23. Qc3+ {[%emt 0:07:31]} Nf6 {[%emt 0:00:46]} 24. Nd2 {[%emt 0:00:26]} Bf5 {[%emt 0:00:49]} 25. Be4 {[%emt 0:07:37]} Rc8 {[%emt 0:01:21]} 26. Qd4 {[%emt 0:00:05]} Qd7 {[%emt 0:02:49]} 27. Bxf5 {[%emt 0:04:22]} Qxf5 {[%emt 0:00:26]} 28. Nc4 {[%emt 0:00:10]} Qxd5 {[%emt 0:01:27] Weighted Error Value: White=0.10 (very precise) /Black=0.07 (flawless) .  Inaccurate:     	White=2     	Black=1      OK:         	White=6     	Black=8      Best:        	---       	Black=1} 1/2-1/2

[Event "Arona Festival 2024"]
[Site "Arona Tenerife"]
[Date "2024.06.24"]
[Round "4.5"]
[White "Peralta, Fernando"]
[Black "Kovchan, Alexander"]
[Result "1-0"]
[ECO "D36"]
[WhiteElo "2562"]
[BlackElo "2455"]
[Annotator "TA"]
[PlyCount "123"]
[EventDate "2024.06.20"]
[EventType "swiss"]
[EventCountry "ESP"]
[SourceTitle "playchess.com"]
[Source "ChessBase"]
[SourceQuality "1"]
[TimeControl "5400+30"]

{[%evp 52,123,31,22,30,31,57,60,57,64,88,88,108,114,113,121,98,96,94,77,187,189,171,158,181,193,179,175,175,179,176,77,79,79,171,171,235,268,245,202,320,254,247,206,580,564,576,572,610,594,627,539,699,667,634,572,568,532,1487,1410,1774,1824,29970,29971,29960,12821,29941,1911,1533,0,29955,29955,6091,6242]} 1. d4 {[%emt 0:00:03]} d5 {[%emt 0:00:06]} 2. c4 {[%emt 0:00:26]} e6 {[%emt 0:00:08]} 3. Nc3 {[%emt 0:00:17]} Nf6 {[%emt 0:00:09]} 4. cxd5 {[%emt 0:00:20]} exd5 {[%emt 0:00:08]} 5. Bg5 {[%emt 0:00:07]} c6 {[%emt 0:00:18]} 6. e3 {[%emt 0:00:40]} h6 {[%emt 0:01:35]} 7. Bh4 {[%emt 0:00:18]} Be7 {[%emt 0:01:13]} 8. Bd3 {[%emt 0:00:16]} O-O {[%emt 0:00:11]} 9. Nge2 {[%emt 0:00:52]} Re8 {[%emt 0:00:37]} 10. O-O {[%emt 0:00:36]} Nbd7 {[%emt 0:00:59]} 11. Qc2 {[%emt 0:03:44]} Nh5 {[%emt 0:00:12] is now debated instead of 11...Ne4.} 12. Bxe7 {[%emt 0:00:46] D36: Queen's Gambit Declined: Exchange Variation: Main line (5 Bg5 c6 6 Qc2).} Qxe7 {[%emt 0:00:07]} 13. Rae1 {[%emt 0:01:08]} Nf8 {[%emt 0:00:10]} 14. Nc1 {[%emt 0:02:19]} b6 {[%emt 0:04:43]} 15. f3 {[%emt 0:10:09]} Bb7 {[%emt 0:02:31]} 16. Qf2 {[%emt 0:01:53]} c5 {[%emt 0:11:40]} 17. g4 $146 {[%emt 0:07:30]} ({Predecessor:} 17. Bb5 Red8 18. Nd3 a6 19. Ba4 c4 20. Ne5 b5 21. Bc2 b4 22. Ne2 a5 23. g4 {1-0 Dreev,A (2606)-Lazavik,D (2560) Speed Chess Q1 Sw blitz 2023 (2)}) 17... Nf6 {[%emt 0:05:19]} 18. h4 {[%emt 0:00:11]} cxd4 {[%emt 0:06:32]} 19. exd4 {[%emt 0:00:21]} Qd6 {[%emt 0:00:16]} 20. N1e2 {[%emt 0:07:48]} Bc6 {[%emt 0:01:31]} 21. a3 {[%emt 0:09:56]} Ne6 {[%emt 0:03:47]} 22. Qh2 {[%emt 0:01:15]} Qxh2+ 23. Kxh2 {[%emt 0:00:02]} g6 {[%emt 0:02:05]} 24. Kg3 {[%emt 0:01:11]} Kg7 {[%emt 0:06:41]} 25. Rc1 {[%emt 0:02:39]} Rac8 {[%emt 0:07:46]} 26. Nd1 {[%emt 0:03:27]} Bd7 {[%emt 0:01:13]} 27. Rxc8 {[%emt 0:00:13]} Bxc8 {[%emt 0:00:36]} 28. Kf2 {[%emt 0:00:23]} Bb7 {[%emt 0:08:39]} 29. Ne3 {[%emt 0:01:22]} Rc8 {[%emt 0:00:57]} 30. Rg1 {[%emt 0:02:42]} Ne8 {[%emt 0:02:01]} 31. f4 {[%emt 0:04:49]} Nf8 {[%emt 0:01:29]} 32. g5 {[%emt 0:01:50]} hxg5 {[%emt 0:01:23]} 33. hxg5 {[%emt 0:00:12]} (33. fxg5 Ne6 $14) 33... Nd6 {[%emt 0:01:17]} 34. f5 {[%emt 0:03:46]} gxf5 {[%emt 0:00:47]} 35. Ng3 {[%emt 0:09:15]} (35. Nxf5+ Nxf5 36. Bxf5 Rc4 $14) (35. Bxf5 Ne6 $14) 35... Ng6 {[%emt 0:02:44]} (35... Ne4+ 36. Bxe4 dxe4 37. Ngxf5+ (37. Nexf5+ Kh8 $18) 37... Kh8 38. Rh1+ Nh7 39. Nd6 $18) (35... Kg8 $16 {was called for.} 36. Ngxf5 (36. Bxf5 Rc7 $16) (36. Nexf5 Nxf5 37. Bxf5 Rc4 $16) 36... Rd8) 36. Ngxf5+ {[%emt 0:01:18]} ({Stronger than} 36. Bxf5 Rh8 $11) 36... Nxf5 {[%emt 0:00:07]} 37. Nxf5+ {[%emt 0:00:04]} Kf8 {[%emt 0:02:20]} 38. Nd6 $1 {[%emt 0:01:25]} Rc7 {[%emt 0:00:29]} 39. Re1 $1 {[%emt 0:08:21]} Bc6 {[%emt 0:03:44] [#]} 40. Rc1 $1 {[%emt 0:01:35]} Ne7 {[%emt 0:00:54] [#]} 41. b4 {[%emt 0:08:42]} (41. Bf5 $1 $18 {and White stays clearly on top.}) 41... Rd7 $16 {[%emt 0:01:27]} 42. Nf5 {[%emt 0:00:05]} Nxf5 (42... Ba4 $16) 43. Bxf5 $18 {[%emt 0:00:05]} Rd6 {[%emt 0:05:29]} 44. Kf3 {[%emt 0:01:28]} Bd7 {[%emt 0:00:28]} 45. Kf4 {[%emt 0:01:05]} Bxf5 46. Kxf5 {[%emt 0:00:02]} Re6 {[%emt 0:01:17]} 47. Rc7 {[%emt 0:03:05]} Re4 $2 {[%emt 0:02:19]} (47... a5 {is more resistant.} 48. b5 Re4) 48. Rxa7 $18 {[%emt 0:00:13]} Rxd4 {[%emt 0:00:15]} 49. Rb7 {[%emt 0:00:45]} Rd1 {[%emt 0:02:57]} 50. Rxb6 {[%emt 0:01:56]} d4 {[%emt 0:00:03]} 51. Ke4 {[%emt 0:01:24]} d3 {[%emt 0:00:20]} 52. Ke3 {[%emt 0:00:55]} d2 {[%emt 0:05:55]} 53. Ra6 {[%emt 0:00:23]} Rg1 {[%emt 0:00:43]} 54. Kxd2 {[%emt 0:00:03]} Rxg5 {[%emt 0:00:03]} 55. Ra7 {[%emt 0:01:04]} Re5 {[%emt 0:01:20]} 56. a4 {[%emt 0:00:46]} Re4 {[%emt 0:02:51]} 57. b5 {[%emt 0:00:42]} Rb4 {[%emt 0:00:01]} 58. Kc3 {[%emt 0:00:11]} Rb1 {[%emt 0:00:04]} 59. Kc2 {[%emt 0:00:16]} (59. Rb7 $142 Kg8 60. a5 Kh7 61. a6 (61. Rxf7+ Kg6 $18) 61... Kg7 62. a7 Ra1 63. b6 Rc1+ 64. Kb2) 59... Rb4 $18 {[%emt 0:00:04]} 60. Kc3 {[%emt 0:00:05]} (60. Kd3 $18 f5 61. Kc3) 60... Rb1 {[%emt 0:00:06]} 61. Rb7 {[%emt 0:00:55]} Ra1 {[%emt 0:02:08]} 62. b6 {[%emt 0:00:07]} 1-0

[Event "Arona Festival 2024"]
[Site "Arona Tenerife"]
[Date "2024.06.24"]
[Round "4.6"]
[White "Omelja, Artem"]
[Black "Socko, Bartosz"]
[Result "1/2-1/2"]
[ECO "E18"]
[WhiteElo "2435"]
[BlackElo "2556"]
[Annotator "TA"]
[PlyCount "81"]
[EventDate "2024.06.20"]
[EventType "swiss"]
[EventCountry "ESP"]
[SourceTitle "playchess.com"]
[Source "ChessBase"]
[SourceQuality "1"]
[TimeControl "5400+30"]

{[%evp 14,81,16,12,20,22,19,13,11,18,27,8,23,20,20,29,31,19,15,11,31,8,25,9,0,0,8,16,9,11,12,0,33,22,29,0,7,0,0,0,0,0,0,-22,-13,-8,-7,-14,-4,-8,-8,-12,-3,-5,0,0,0,0,0,0,0,0,0,0,0,0,0,0,0,0]} 1. d4 {[%emt 0:09:45]} Nf6 {[%emt 0:00:03]} 2. c4 {[%emt 0:00:27]} e6 {[%emt 0:00:05]} 3. Nf3 {[%emt 0:00:07]} b6 {[%emt 0:00:04]} 4. g3 {[%emt 0:00:44]} Bb7 {[%emt 0:00:08]} 5. Bg2 {[%emt 0:00:10]} Be7 {[%emt 0:00:05]} 6. O-O {[%emt 0:00:28]} O-O {[%emt 0:00:04]} 7. Re1 {[%emt 0:00:43]} Na6 {[%emt 0:00:07]} 8. Nc3 {[%emt 0:04:33]} Ne4 {[%emt 0:00:19]} 9. Nxe4 {[%emt 0:02:38]} (9. h4 {looks sharper.} d6 10. Ng5 Nxc3 11. Qc2) 9... Bxe4 {[%emt 0:00:07]} 10. Ne5 {[%emt 0:00:20]} Bxg2 {[%emt 0:00:56]} 11. Kxg2 {[%emt 0:00:08]} Bf6 {[%emt 0:05:17]} 12. Nf3 {[%emt 0:02:03]} d5 {[%emt 0:05:25]} 13. Qa4 {[%emt 0:02:07]} Qc8 {[%emt 0:00:07]} 14. cxd5 exd5 {[%emt 0:00:50]} 15. Bg5 {[%emt 0:13:47]} Bxg5 {[%emt 0:00:30]} 16. Nxg5 {[%emt 0:00:08]} c5 {[%emt 0:05:34]} 17. Qc2 {[%emt 0:03:02][%csl Gg5][%cal Rc2h7] [#]} g6 {[%emt 0:00:07]} 18. dxc5 {[%emt 0:00:59]} bxc5 {[%emt 0:01:24]} 19. b3 {[%emt 0:06:19]} Qc6 {[%emt 0:04:01]} 20. Rac1 {[%emt 0:02:31]} Rac8 {[%emt 0:00:29]} 21. Qd2 {[%emt 0:01:34]} Rfd8 {[%emt 0:14:18]} 22. Qf4 {[%emt 0:01:36]} f6 {[%emt 0:01:40]} 23. Nf3 {[%emt 0:00:40]} d4 {[%emt 0:00:25]} 24. Kg1 {[%emt 0:02:02]} Nb4 {[%emt 0:00:28][%cal Ba6b4,Bb4a2,Ba2c3][%mdl 32] The position is equal.} 25. Qd2 {[%emt 0:10:26]} Qa6 {[%emt 0:16:39]} 26. Rc4 {[%emt 0:01:57]} Qxa2 {[%emt 0:07:54]} 27. Qxa2 {[%emt 0:00:14]} Nxa2 {[%emt 0:00:05]} 28. Ra4 {[%emt 0:00:20]} Nc3 {[%emt 0:03:29]} 29. Rxa7 {[%emt 0:00:22]} Ra8 {[%emt 0:02:12]} 30. Rc7 {[%emt 0:10:34]} Rdc8 {[%emt 0:02:03]} 31. Rxc8+ {[%emt 0:02:51]} Rxc8 $11 {[%emt 0:00:07][%mdl 4096] Endgame. KRN-KRN} 32. Kf1 {[%emt 0:07:06]} Rb8 {[%emt 0:09:38]} 33. e3 {[%emt 0:07:32]} Rxb3 {[%emt 0:08:57]} 34. exd4 {[%emt 0:00:13]} Nd5 {[%emt 0:00:19]} 35. Kg2 {[%emt 0:02:08]} c4 {[%emt 0:00:25]} 36. Nd2 {[%emt 0:02:22][%csl LRb3,LRc4]} Rb4 {[%emt 0:00:43] [#] Hoping for ...c3.} 37. Re8+ {[%emt 0:00:27]} Kf7 {[%emt 0:00:05]} 38. Rc8 {[%emt 0:00:08]} c3 {[%emt 0:01:24]} 39. Ne4 {[%emt 0:00:21]} Rxd4 {[%emt 0:04:55]} 40. Nxc3 {[%emt 0:00:09]} Nxc3 {[%emt 0:00:04]} 41. Rxc3 {[%emt 0:00:07] Not much happened in this game.   Weighted Error Value: White=0.04 (flawless) /Black=0.06 (flawless) .  Inaccurate:     	---       	Black=1      OK:         	White=13    	Black=9      Best:        	White=2     	---} 1/2-1/2